Workbook

Sheet Muni.Tax
A1: Advice No. 2019-01 | C1: Page 1 of 5 | F1: Energy | G1: G | H1: Ordinance City Tax Rate = | K1: 0.06
A2: Exhibit B: Calculation of the Total Effect of Lake Stevens Levy City Utility Tax
A3: Total Bill Excluding City Tax and City Tax Related Additonal Revenue | D3: 100 | F3: Calculated Grossed-up City Tax Rate = | I3: 0.06269306634
A4: City Tax and City Tax Related Additonal Revenue | D4: =ROUND(D3*I14,2) -> 6.27
A5: Gross Taxable Revenue | D5: =D3+D4 -> 106.27 | H5: Electric State Utility Tax Rate = | I5: =+'Pub Util Tax'!Q31 -> 0.038734
H6: Natural Gas State Utility Tax Rate = | I6: =+'Pub Util Tax'!Q32 -> 0.03852
A7: Allowed City Tax Deductions | H7: State Utility Tax Rate w/ Loss Adjustment = | I7: =IF(G1="E",($I$5-($I$5*$I$12)),($I$6-($I$6*$I$11))) -> 0.0383220072
A8: Credit Losses | C8: Y | D8: =IF(C8="Y",D5*I10,0) -> 0.5462278 | H8: State Filing Fee Rate = | I8: =+'Annual Filing Fee'!K10 -> 0.002
A9: State Utility Tax | C9: N | D9: =IF(C9="Y",D5*I7,0) -> 0 | H9: State Filing Fee w/ Loss Adjustment = | I9: =$I$8-($I$8*$I$10) -> 0.00198972
A10: State Filing Fee | C10: N | D10: =IF(C10="Y",D5*I9,0) -> 0 | H10: Bad Debts Rate = | I10: =+SUMIF($H$11:$H$12,G1,I11:I12) -> 0.00514
A11: City Tax | C11: Y | D11: =IF(C11="Y",D4-D4*I7-D4*I9-D4*I10,0) -> 5.98501767 | H11: G | I11: =+'3.05 G'!E13 -> 0.00514
A12: Total Deductions | D12: =SUM(D8:D11) -> 6.53124547 | H12: E | I12: =+'3.04 E'!E14 -> 0.007157
A14: Net City Tax Taxable Revenue | D14: =D5-D12 -> 99.73875453 | H14: Grossed-up City Tax Rate to Use in CLX = | I14: =ROUND(I3,4) -> 0.0627
A15: City Tax Payable | D15: =D14*K1 -> 5.984325272
A16: Additonal State Utility Tax due to City Tax | D16: =D4*I7 -> 0.2402789851
A17: Additional State Filing Fee due to City Tax | D17: =D4*I8 -> 0.01254
A18: Additional Credit Losses due to City Tax | D18: =D4*I10 -> 0.0322278
G19: Y
A20: Total Cost due to City Tax | D20: =SUM(D15:D18) -> 6.269372057 | F20: =ABS(IF(ROUND(F25,0)<>0,F25,0))+IF(ABS(ROUND(D22,0)-ABS(ROUND(F25,0)))=0,ABS(D22)+ABS(F25),0)+ABS(IF(ABS(D22)<>0,D22,0)) -> 0.00194828485 | G20: N
A22: Difference between collected and paid | D22: =+D4-D20 -> 0.0006279430834 | E22: =+D22/D4 -> 0.000100150412 | F22: [Hit "Refresh" button until F25 and D22 are near zero]
F23: [Manual adjstment of I3 is necessary in some cases]
A25: Difference between City Tax Deduction and City Tax Paid | F25: =IF(C11="Y",D11-D15,0) -> 0.0006923986834
A27: Difference in collection, per $M resulting from using SAP rate = | F27: =D20-(D3*I14) -> -0.0006279430834
A29: Model Version: 4/19/2018
D30: =+ROUND(D3,2) -> 100
D31: =+ROUND(D4,2) -> 6.27
D32: 106.27
D33: 0
D34: 0
D35: 0.55
D36: 0
D37: 0
D38: 5.99
D39: 6.53
D40: 0
D41: 99.74
D42: 5.98

Sheet 3.04 E
A1: Advice No. 2019-01 | C1: Page 2 of 5
A2: Exhibit B: Calculation of the Total Effect of Lake Stevens Levy City Utility Tax
E5: Page 3.04
B6: PUGET SOUND ENERGY-ELECTRIC
B7: CONVERSION FACTOR - ELECTRIC
B8: FOR THE TWELVE MONTHS ENDED SEPTEMBER 30, 2016
A11: LINE
A12: NO. | B12: DESCRIPTION | E12: RATE
A14: 1 | B14: BAD DEBTS | E14: =+'[6]KJB-3,11 Def'!$M$13 -> 0.007157
A15: 2 | B15: ANNUAL FILING FEE | E15: ='Annual Filing Fee'!A1 -> 0.002
A16: 3 | B16: ="STATE UTILITY TAX - NET OF BAD DEBTS ( "&D16*100&"% - ( LINE 1 * "&D16*100&"%) )" -> STATE UTILITY TAX - NET OF BAD DEBTS ( 3.8734% - ( LINE 1 * 3.8734%) ) | D16: ='Pub Util Tax'!D3 -> 0.038734 | E16: =ROUND(D16-(D16*E14),6) -> 0.038457
A17: 4
A18: 5 | B18: SUM OF TAXES OTHER | E18: =ROUND(SUM(E14:E16),6) -> 0.047614
A19: 6
A20: 7 | B20: CONVERSION FACTOR EXCLUDING FEDERAL INCOME TAX ( 1 - LINE 5) | E20: =ROUND(1-E18,6) -> 0.952386
A21: 8 | B21: FEDERAL INCOME TAX ( LINE 7 * 21%) | D21: 0.21 | E21: =ROUND((E20)*D21,6) -> 0.200001
A22: 9 | B22: CONVERSION FACTOR INCL FEDERAL INCOME TAX ( LINE 5 + LINE 8 ) | E22: =ROUND(1-E21-E18,6) -> 0.752385

Sheet 3.05 G
A1: Advice No. 2019-01 | C1: Page 3 of 5
A2: Exhibit B: Calculation of the Total Effect of Lake Stevens Levy City Utility Tax
E4: Page 3.05
B5: PUGET SOUND ENERGY-GAS
B6: CONVERSION FACTOR - GAS
B7: =+'3.04 E'!B8:E8 -> FOR THE TWELVE MONTHS ENDED SEPTEMBER 30, 2016
A10: LINE
A11: NO. | B11: DESCRIPTION | E11: RATE
A13: 1 | B13: BAD DEBTS | E13: ='[7]Gas Detail Pages'!$AN$23 -> 0.00514
A14: 2 | B14: ANNUAL FILING FEE | E14: ='Annual Filing Fee'!A1 -> 0.002
A15: 3 | B15: ="STATE UTILITY TAX - NET OF BAD DEBTS ( "&D15*100&"% - ( LINE 1 * "&D15*100&"%) )" -> STATE UTILITY TAX - NET OF BAD DEBTS ( 3.852% - ( LINE 1 * 3.852%) ) | D15: ='Pub Util Tax'!$D$4 -> 0.03852 | E15: =ROUND(D15-(D15*E13),6) -> 0.038322
A16: 4
A17: 5 | B17: SUM OF TAXES OTHER | E17: =ROUND(SUM(E13:E15),6) -> 0.045462
A18: 6
A19: 7 | B19: CONVERSION FACTOR EXCLUDING FEDERAL INCOME TAX ( 1 - LINE 5) | E19: =ROUND(1-E17,6) -> 0.954538
A20: 8 | B20: FEDERAL INCOME TAX ( LINE 7 * 21%) | D20: 0.21 | E20: =ROUND((E19)*D20,6) -> 0.200453
A21: 9 | B21: CONVERSION FACTOR INCL FEDERAL INCOME TAX ( LINE 5 + LINE 8 ) | E21: =ROUND(1-E20-E17,6) -> 0.754085

Sheet Annual Filing Fee
A1: 0.002 | M1: Advice No. 2019-01 | O1: Page 4 of 5
A2: RCW 80.24.010 | M2: Exhibit B: Calculation of the Total Effect of Lake Stevens Levy City Utility Tax
A3: Companies to file reports of gross revenue and pay fees — Delinquent fee payments.
A5: Every public service company subject to regulation by the commission shall, on or before the
A6: date specified by the commission for filing annual reports under RCW 80.04.080, file with the
A7: commission a statement on oath showing its gross operating revenue from intrastate
A8: operations for the preceding calendar year or portion thereof and pay to the commission a | L8: check
A9: fee equal to one-tenth of one percent of the first fifty thousand dollars of gross operating | L9: Gas | M9: Electric
A10: revenue, plus two-tenths of one percent of any gross operating revenue in excess of fifty | K10: 0.002 | L10: =+'3.05 G'!E14 -> 0.002 | M10: =+'3.04 E'!E15 -> 0.002
A11: thousand dollars: PROVIDED, That the commission may, by rule, set minimum fees that do
A12: not exceed the cost of collecting the fees. The commission may by rule waive any or all of
A13: the minimum fee established pursuant to this section.
A15: The percentage rates of gross operating revenue to be paid in any year may be decreased
A16: by the commission for any class of companies subject to the payment of such fees, by
A17: general order entered before March 1st of such year, and for such purpose such companies
A18: shall be classified as follows:
A20: Electrical, gas, water, telecommunications, and irrigation companies shall constitute class
A21: one. Every other company subject to regulation by the commission, for which regulatory fees
A22: are not otherwise fixed by law shall pay fees as herein provided and shall constitute
A23: additional classes according to kinds of businesses engaged in.
A25: Any payment of the fee imposed by this section made after its due date shall include a
A26: late fee of two percent of the amount due. Delinquent fees shall accrue interest at the rate
A27: of one percent per month.
A29: [2003 c 296 § 1; 1994 c 83 § 1; 1990 c 48 § 1; 1985 c 450 § 14; 1961 c 14 § 80.24.010. Prior: 1955
A30: c 125 § 2; prior: 1939 c 123 § 1, part; 1937 c 158 § 1, part; 1929 c 107 § 1, part; 1923 c 107 § 1, part;
A31: 1921 c 113 § 1, part; RRS § 10417, part.]
A33: Notes:
A34: Severability -- Legislative review -- 1985 c 450: See RCW 80.36.900 and 80.36.901.
A37: http://apps.leg.wa.gov/rcw/default.aspx?cite=80.24.010

Sheet Pub Util Tax
A1: State Utility Tax | L1: Advice No. 2019-01 | N1: Page 5 of 5
A2: http://dor.wa.gov/content/FindTaxesAndRates/OtherTaxes/tax_pubutil.aspx | L2: Exhibit B: Calculation of the Total Effect of Lake Stevens Levy City Utility Tax
C3: Electric | D3: 0.038734
C4: Gas | D4: 0.03852
S30: check
Q31: 0.038734 | R31: electric | S31: =+'3.04 E'!D16 -> 0.038734
Q32: 0.03852 | R32: gas | S32: =+'3.05 G'!D15 -> 0.03852
